[Event "Live Chess"]
[Site "Chess.com"]
[Date "2024.06.01"]
[Round "-"]
[White "degringolade64"]
[Black "Dhaydon19"]
[Result "0-1"]
[WhiteElo "2066"]
[BlackElo "2682"]
[TimeControl "300"]
[EndTime "11:32:55 PDT"]
[Termination "Dhaydon19 won by resignation"]

1. e4 {[%clk 0:04:53.9]} 1... c6 {[%clk 0:04:57.9]} 2. d4 {[%clk 0:04:51.9]}
2... d5 {[%clk 0:04:57]} 3. e5 {[%clk 0:04:51.2]} 3... c5 {[%clk 0:04:56]} 4.
dxc5 {[%clk 0:04:48.4]} 4... Nc6 {[%clk 0:04:54.9]} 5. Nf3 {[%clk 0:04:45.6]}
5... Bg4 {[%clk 0:04:53.3]} 6. c3 {[%clk 0:04:44.2]} 6... e6 {[%clk 0:04:51.1]}
7. Be3 {[%clk 0:04:39.9]} 7... Bxf3 {[%clk 0:04:48.8]} 8. Qxf3 {[%clk
0:04:38.1]} 8... Nxe5 {[%clk 0:04:48.5]} 9. Bb5+ {[%clk 0:04:36]} 9... Nc6
{[%clk 0:04:47.8]} 10. c4 {[%clk 0:04:33.2]} 10... Nf6 {[%clk 0:04:47]} 11. Nc3
{[%clk 0:04:30.1]} 11... a6 {[%clk 0:04:40.3]} 12. Ba4 {[%clk 0:04:25.2]} 12...
Rc8 {[%clk 0:04:35]} 13. O-O {[%clk 0:04:09.2]} 13... Be7 {[%clk 0:04:31.4]} 14.
Rad1 {[%clk 0:04:06.5]} 14... O-O {[%clk 0:04:24]} 15. cxd5 {[%clk 0:04:04.5]}
15... Nxd5 {[%clk 0:04:22.3]} 16. Nxd5 {[%clk 0:04:02.4]} 16... exd5 {[%clk
0:04:19.2]} 17. Rxd5 {[%clk 0:03:55.2]} 17... Qa5 {[%clk 0:04:16.7]} 18. Bc2
{[%clk 0:03:35.3]} 18... Nb4 {[%clk 0:04:08.8]} 19. Bxh7+ {[%clk 0:03:21.1]}
19... Kxh7 {[%clk 0:04:04.9]} 20. Rh5+ {[%clk 0:03:19.1]} 20... Kg8 {[%clk
0:04:04]} 21. Qh3 {[%clk 0:03:13.7]} 21... f5 {[%clk 0:03:56.1]} 22. Rh8+ {[%clk
0:03:01]} 22... Kf7 {[%clk 0:03:54.9]} 23. Qxf5+ {[%clk 0:03:00.6]} 23... Bf6
{[%clk 0:03:53.8]} 24. Qd7+ {[%clk 0:02:23.9]} 24... Be7 {[%clk 0:03:45.6]} 25.
Rh3 {[%clk 0:02:15.1]} 25... Rc6 {[%clk 0:03:34.1]} 26. Rf3+ {[%clk 0:01:56.1]}
26... Rf6 {[%clk 0:03:32.5]} 27. Bg5 {[%clk 0:01:52.5]} 27... Qd8 {[%clk
0:03:28.9]} 28. Qxd8 {[%clk 0:01:28.7]} 28... Rxd8 {[%clk 0:03:25.5]} 29. Bxf6
{[%clk 0:01:28.2]} 29... Bxf6 {[%clk 0:03:24.7]} 30. a3 {[%clk 0:01:22.5]} 30...
Nc6 {[%clk 0:03:21.3]} 31. b4 {[%clk 0:01:21.3]} 31... Nd4 {[%clk 0:03:18.9]}
32. Re3 {[%clk 0:01:12.7]} 32... Nc2 {[%clk 0:03:16.8]} 33. Rb3 {[%clk 0:01:08]}
33... Rd2 {[%clk 0:03:12.7]} 34. a4 {[%clk 0:01:04.1]} 34... Nd4 {[%clk
0:03:11.4]} 35. Rbb1 {[%clk 0:01:02.1]} 35... Rc2 {[%clk 0:03:07.3]} 36. Rfe1
{[%clk 0:00:53.3]} 36... Rc4 {[%clk 0:03:03.4]} 37. Kf1 {[%clk 0:00:34.4]} 37...
Be7 {[%clk 0:02:56]} 38. Rec1 {[%clk 0:00:32.8]} 38... Rxc1+ {[%clk 0:02:52.7]}
39. Rxc1 {[%clk 0:00:32.7]} 39... Ke6 {[%clk 0:02:52]} 40. Ke1 {[%clk
0:00:28.9]} 40... Kd5 {[%clk 0:02:50.6]} 41. Rc3 {[%clk 0:00:26.8]} 41... Bf6
{[%clk 0:02:48.8]} 42. Rd3 {[%clk 0:00:24.4]} 42... Kc4 {[%clk 0:02:47.3]} 43.
Rd1 {[%clk 0:00:22.8]} 43... Nc2+ {[%clk 0:02:44]} 44. Ke2 {[%clk 0:00:21.1]}
44... Nxb4 {[%clk 0:02:43.6]} 45. Kf3 {[%clk 0:00:19.9]} 45... Kxc5 {[%clk
0:02:41.3]} 46. g3 {[%clk 0:00:16.9]} 46... Nc6 {[%clk 0:02:40.1]} 47. h4 {[%clk
0:00:16.5]} 47... b5 {[%clk 0:02:38.2]} 48. h5 {[%clk 0:00:16.1]} 48... Ne5+
{[%clk 0:02:36.2]} 49. Ke4 {[%clk 0:00:14.6]} 49... b4 {[%clk 0:02:32.8]} 50. f4
{[%clk 0:00:12]} 50... Nc4 {[%clk 0:02:30.9]} 51. g4 {[%clk 0:00:11.6]} 51...
Nd6+ {[%clk 0:02:28.3]} 52. Kf3 {[%clk 0:00:09.1]} 52... b3 {[%clk 0:02:25.5]}
53. g5 {[%clk 0:00:08.7]} 53... Bc3 {[%clk 0:02:23.7]} 54. h6 {[%clk 0:00:05.9]}
54... gxh6 {[%clk 0:02:22.6]} 55. gxh6 {[%clk 0:00:05.8]} 55... Nf5 {[%clk
0:02:18.8]} 56. Kg4 {[%clk 0:00:05.1]} 56... Ne3+ {[%clk 0:02:17.6]} 57. Kg5
{[%clk 0:00:05]} 57... Nxd1 {[%clk 0:02:17.3]} 0-1

[Event "Live Chess"]
[Site "Chess.com"]
[Date "2024.06.01"]
[Round "-"]
[White "KeithArkell"]
[Black "KwikPhoenix"]
[Result "0-1"]
[WhiteElo "2503"]
[BlackElo "2436"]
[TimeControl "300"]
[EndTime "11:33:24 PDT"]
[Termination "KwikPhoenix won by resignation"]

1. d4 {[%clk 0:04:58.1]} 1... f5 {[%clk 0:04:59.1]} 2. Nf3 {[%clk 0:04:57.3]}
2... Nf6 {[%clk 0:04:58.1]} 3. g3 {[%clk 0:04:56.9]} 3... e6 {[%clk 0:04:57.6]}
4. Bg2 {[%clk 0:04:56.4]} 4... Be7 {[%clk 0:04:57.3]} 5. O-O {[%clk 0:04:55.8]}
5... O-O {[%clk 0:04:56.8]} 6. c4 {[%clk 0:04:55.2]} 6... d6 {[%clk 0:04:55.1]}
7. b3 {[%clk 0:04:54.4]} 7... a5 {[%clk 0:04:53.8]} 8. Bb2 {[%clk 0:04:53.6]}
8... Qe8 {[%clk 0:04:52.6]} 9. Nbd2 {[%clk 0:04:49.1]} 9... Qh5 {[%clk 0:04:39]}
10. Re1 {[%clk 0:04:47.6]} 10... Ne4 {[%clk 0:04:37.8]} 11. Qc2 {[%clk
0:04:44.8]} 11... Nxd2 {[%clk 0:04:32.9]} 12. Qxd2 {[%clk 0:04:44.7]} 12... Bf6
{[%clk 0:04:27.9]} 13. e4 {[%clk 0:04:42.9]} 13... fxe4 {[%clk 0:04:26.7]} 14.
Rxe4 {[%clk 0:04:42.1]} 14... Nc6 {[%clk 0:04:22.6]} 15. d5 {[%clk 0:04:40.6]}
15... exd5 {[%clk 0:04:13.4]} 16. cxd5 {[%clk 0:04:36.7]} 16... Bxb2 {[%clk
0:04:12.1]} 17. Qxb2 {[%clk 0:04:35.8]} 17... Qxd5 {[%clk 0:03:56.7]} 18. Re3
{[%clk 0:04:29.8]} 18... Qf5 {[%clk 0:03:48.4]} 19. Rae1 {[%clk 0:04:28.1]}
19... Bd7 {[%clk 0:03:44.4]} 20. Nh4 {[%clk 0:04:25.2]} 20... Qf6 {[%clk
0:03:36.8]} 21. Bd5+ {[%clk 0:04:19.6]} 21... Kh8 {[%clk 0:03:34]} 22. Qd2
{[%clk 0:04:15]} 22... a4 {[%clk 0:03:06.7]} 23. Ng2 {[%clk 0:03:22.2]} 23...
axb3 {[%clk 0:02:50.6]} 24. axb3 {[%clk 0:03:22.1]} 24... Ne5 {[%clk 0:02:07.1]}
25. Bxb7 {[%clk 0:03:09.5]} 25... Rab8 {[%clk 0:02:06.5]} 26. Be4 {[%clk
0:03:05.8]} 26... Qh6 {[%clk 0:01:56.4]} 27. Nf4 {[%clk 0:03:04.4]} 27... Ng4
{[%clk 0:01:49.2]} 28. h4 {[%clk 0:02:52.7]} 28... Nxe3 {[%clk 0:01:43.5]} 29.
Rxe3 {[%clk 0:02:51.8]} 29... Rfe8 {[%clk 0:01:33.7]} 30. Qc3 {[%clk 0:02:34.3]}
30... c5 {[%clk 0:01:30.3]} 31. Nd5 {[%clk 0:02:31.6]} 31... Be6 {[%clk
0:01:20]} 32. Bg2 {[%clk 0:02:19.6]} 32... Bxd5 {[%clk 0:01:14.2]} 33. Rxe8+
{[%clk 0:02:18.5]} 33... Rxe8 {[%clk 0:01:13.4]} 34. Bxd5 {[%clk 0:02:18.1]}
34... Qf6 {[%clk 0:01:08.4]} 35. Qd3 {[%clk 0:02:14.3]} 35... Qa1+ {[%clk
0:01:04.5]} 36. Kg2 {[%clk 0:02:13.1]} 36... Qe5 {[%clk 0:01:02]} 37. Bf3 {[%clk
0:02:06.2]} 37... g6 {[%clk 0:01:00.5]} 38. h5 {[%clk 0:02:04.9]} 38... Kg7
{[%clk 0:00:59]} 39. hxg6 {[%clk 0:02:03.6]} 39... hxg6 {[%clk 0:00:58.9]} 40.
Bc6 {[%clk 0:02:00.7]} 40... Rf8 {[%clk 0:00:57.9]} 41. Qd2 {[%clk 0:01:55.8]}
41... Rd8 {[%clk 0:00:49.4]} 42. Bd5 {[%clk 0:01:54.8]} 42... Rb8 {[%clk
0:00:47.7]} 43. Qd3 {[%clk 0:01:45.3]} 43... Rb4 {[%clk 0:00:45.7]} 44. Qf3
{[%clk 0:01:41.5]} 44... Qf6 {[%clk 0:00:41]} 45. Qe2 {[%clk 0:01:32.2]} 45...
Rd4 {[%clk 0:00:39.1]} 46. Bf3 {[%clk 0:01:29.4]} 46... Qe5 {[%clk 0:00:38]} 47.
Qb5 {[%clk 0:01:27.6]} 47... Qf6 {[%clk 0:00:33.2]} 48. Qd7+ {[%clk 0:01:26.4]}
48... Qf7 {[%clk 0:00:31.7]} 49. Qb7 {[%clk 0:01:17.2]} 49... Qxb7 {[%clk
0:00:28.1]} 50. Bxb7 {[%clk 0:01:14.6]} 50... Rd3 {[%clk 0:00:27.7]} 51. Ba6
{[%clk 0:01:07.5]} 51... Rxb3 {[%clk 0:00:26.8]} 52. Kf1 {[%clk 0:01:07.4]}
52... Ra3 {[%clk 0:00:25.4]} 53. Bc4 {[%clk 0:01:06.4]} 53... Ra4 {[%clk
0:00:24]} 54. Be6 {[%clk 0:01:04.7]} 54... Kf6 {[%clk 0:00:21.8]} 55. Bb3 {[%clk
0:01:04.4]} 55... Rb4 {[%clk 0:00:20.5]} 56. Bg8 {[%clk 0:01:02.5]} 56... Ke5
{[%clk 0:00:20.4]} 57. Ke2 {[%clk 0:01:01.3]} 57... g5 {[%clk 0:00:19.9]} 58.
Ke3 {[%clk 0:00:59.3]} 58... d5 {[%clk 0:00:19.8]} 59. f3 {[%clk 0:00:56.5]}
59... d4+ {[%clk 0:00:18.7]} 60. Ke2 {[%clk 0:00:55]} 60... Rb2+ {[%clk
0:00:17.5]} 61. Kd3 {[%clk 0:00:54]} 61... Rf2 {[%clk 0:00:16]} 62. Kc4 {[%clk
0:00:53.4]} 62... Rxf3 {[%clk 0:00:15]} 63. Kxc5 {[%clk 0:00:52.9]} 63... Rc3+
{[%clk 0:00:14.9]} 64. Kb4 {[%clk 0:00:52.1]} 64... Rxg3 {[%clk 0:00:14.6]} 65.
Bh7 {[%clk 0:00:50.3]} 65... Re3 {[%clk 0:00:14.5]} 66. Kc4 {[%clk 0:00:49.5]}
66... g4 {[%clk 0:00:12]} 67. Bg6 {[%clk 0:00:46]} 67... g3 {[%clk 0:00:11.9]}
0-1

[Event "Live Chess"]
[Site "Chess.com"]
[Date "2024.06.01"]
[Round "-"]
[White "WilliamofOrange16th"]
[Black "FlyingChessKestrel13"]
[Result "1-0"]
[WhiteElo "1966"]
[BlackElo "2082"]
[TimeControl "300"]
[EndTime "11:33:25 PDT"]
[Termination "WilliamofOrange16th won by checkmate"]

1. e4 {[%clk 0:04:58.6]} 1... e6 {[%clk 0:04:58.7]} 2. f4 {[%clk 0:04:56.8]}
2... d5 {[%clk 0:04:58.2]} 3. e5 {[%clk 0:04:56.4]} 3... c5 {[%clk 0:04:56.8]}
4. c3 {[%clk 0:04:56.2]} 4... Nc6 {[%clk 0:04:55.2]} 5. Nf3 {[%clk 0:04:55.9]}
5... Nge7 {[%clk 0:04:53.5]} 6. Na3 {[%clk 0:04:54.4]} 6... Nf5 {[%clk
0:04:51.2]} 7. Nc2 {[%clk 0:04:53.6]} 7... d4 {[%clk 0:04:48.3]} 8. Bd3 {[%clk
0:04:51.7]} 8... dxc3 {[%clk 0:04:46.7]} 9. dxc3 {[%clk 0:04:50.5]} 9... Be7
{[%clk 0:04:45.9]} 10. O-O {[%clk 0:04:48.5]} 10... O-O {[%clk 0:04:44.3]} 11.
Ne3 {[%clk 0:04:41.3]} 11... Nxe3 {[%clk 0:04:41.2]} 12. Bxe3 {[%clk 0:04:41.2]}
12... Bd7 {[%clk 0:04:36.8]} 13. Qc2 {[%clk 0:04:39.2]} 13... g6 {[%clk
0:04:33.3]} 14. Rad1 {[%clk 0:04:23.7]} 14... Re8 {[%clk 0:04:32.1]} 15. g3
{[%clk 0:04:20.3]} 15... Qc7 {[%clk 0:04:30.4]} 16. h4 {[%clk 0:04:16.1]} 16...
h5 {[%clk 0:04:28.6]} 17. Bxg6 {[%clk 0:04:11.9]} 17... fxg6 {[%clk 0:04:25.3]}
18. Qxg6+ {[%clk 0:04:11.6]} 18... Kf8 {[%clk 0:04:24.3]} 19. Ng5 {[%clk
0:04:06]} 19... Bxg5 {[%clk 0:04:22.7]} 20. fxg5+ {[%clk 0:04:05.1]} 20... Ke7
{[%clk 0:04:20.1]} 21. Qf6# {[%clk 0:04:04.5]} 1-0

[Event "Live Chess"]
[Site "Chess.com"]
[Date "2024.06.01"]
[Round "-"]
[White "FortunatusMax"]
[Black "PureDashingOctopus"]
[Result "0-1"]
[WhiteElo "914"]
[BlackElo "2253"]
[TimeControl "300"]
[EndTime "11:33:33 PDT"]
[Termination "PureDashingOctopus won by checkmate"]

1. e4 {[%clk 0:04:58.7]} 1... c5 {[%clk 0:04:58.6]} 2. Nc3 {[%clk 0:04:56.9]}
2... d6 {[%clk 0:04:57.6]} 3. Bc4 {[%clk 0:04:54.7]} 3... Nc6 {[%clk 0:04:55.7]}
4. Nf3 {[%clk 0:04:53.2]} 4... Nf6 {[%clk 0:04:54.6]} 5. O-O {[%clk 0:04:51.9]}
5... e6 {[%clk 0:04:54.2]} 6. e5 {[%clk 0:04:48.9]} 6... dxe5 {[%clk 0:04:52.7]}
7. Bb5 {[%clk 0:04:46.4]} 7... Bd6 {[%clk 0:04:50.1]} 8. Bxc6+ {[%clk
0:04:40.5]} 8... bxc6 {[%clk 0:04:48.9]} 9. d4 {[%clk 0:04:37.6]} 9... exd4
{[%clk 0:04:47.4]} 10. Ne2 {[%clk 0:04:32.1]} 10... O-O {[%clk 0:04:45]} 11. c3
{[%clk 0:04:30.3]} 11... e5 {[%clk 0:04:42.1]} 12. cxd4 {[%clk 0:04:26.7]} 12...
cxd4 {[%clk 0:04:41.3]} 13. a3 {[%clk 0:04:23.6]} 13... c5 {[%clk 0:04:40.2]}
14. Re1 {[%clk 0:04:19.2]} 14... e4 {[%clk 0:04:37]} 15. Nh4 {[%clk 0:04:10.7]}
15... Ng4 {[%clk 0:04:33]} 16. g3 {[%clk 0:04:04.5]} 16... g5 {[%clk 0:04:29.8]}
17. Ng2 {[%clk 0:03:56.2]} 17... Ne5 {[%clk 0:04:29.1]} 18. f4 {[%clk
0:03:46.3]} 18... Nf3+ {[%clk 0:04:27.8]} 19. Kf2 {[%clk 0:03:44.4]} 19... Nxe1
{[%clk 0:04:25.9]} 20. Qxe1 {[%clk 0:03:41.1]} 20... e3+ {[%clk 0:04:24.7]} 21.
Kg1 {[%clk 0:03:39.5]} 21... Bb7 {[%clk 0:04:23.1]} 22. fxg5 {[%clk 0:03:35]}
22... Qxg5 {[%clk 0:04:21.2]} 23. Kh1 {[%clk 0:03:15.9]} 23... Qd5 {[%clk
0:04:19.1]} 24. Qg1 {[%clk 0:03:10.3]} 24... d3 {[%clk 0:04:10.9]} 25. Nf4
{[%clk 0:03:08.5]} 25... Bxf4 {[%clk 0:04:06.3]} 26. gxf4 {[%clk 0:03:04.3]}
26... d2 {[%clk 0:04:04.5]} 27. Bxd2 {[%clk 0:02:56.3]} 27... exd2 {[%clk
0:04:00.9]} 28. Rd1 {[%clk 0:02:54.9]} 28... Rfe8 {[%clk 0:03:58.6]} 29. h4
{[%clk 0:02:45]} 29... Re1 {[%clk 0:03:54]} 30. Rxe1 {[%clk 0:02:42.9]} 30...
dxe1=Q {[%clk 0:03:52.3]} 31. Qxe1 {[%clk 0:02:40.6]} 31... Qxg2# {[%clk
0:03:51.2]} 0-1

[Event "Live Chess"]
[Site "Chess.com"]
[Date "2024.06.01"]
[Round "-"]
[White "educatedlad"]
[Black "bobby_jamesFischer86"]
[Result "0-1"]
[WhiteElo "1750"]
[BlackElo "1603"]
[TimeControl "300"]
[EndTime "11:33:48 PDT"]
[Termination "bobby_jamesFischer86 won by resignation"]

1. c3 {[%clk 0:04:57.9]} 1... d5 {[%clk 0:04:58.4]} 2. Nf3 {[%clk 0:04:57.2]}
2... c5 {[%clk 0:04:57.2]} 3. d4 {[%clk 0:04:56.2]} 3... Nc6 {[%clk 0:04:56.1]}
4. Bf4 {[%clk 0:04:53.1]} 4... e6 {[%clk 0:04:54.4]} 5. Nbd2 {[%clk 0:04:52.3]}
5... Bd6 {[%clk 0:04:53.1]} 6. Bxd6 {[%clk 0:04:50.6]} 6... Qxd6 {[%clk
0:04:51.9]} 7. dxc5 {[%clk 0:04:49.1]} 7... Qxc5 {[%clk 0:04:50.2]} 8. Nb3
{[%clk 0:04:48.1]} 8... Qd6 {[%clk 0:04:48.9]} 9. e3 {[%clk 0:04:46.5]} 9... Nf6
{[%clk 0:04:47.6]} 10. Bd3 {[%clk 0:04:46.1]} 10... O-O {[%clk 0:04:44.8]} 11.
Qc2 {[%clk 0:04:44.6]} 11... e5 {[%clk 0:04:42.9]} 12. Bf5 {[%clk 0:04:40.7]}
12... e4 {[%clk 0:04:37.4]} 13. Nfd4 {[%clk 0:04:39.8]} 13... Nxd4 {[%clk
0:04:24.2]} 14. Nxd4 {[%clk 0:04:39.7]} 14... Bxf5 {[%clk 0:04:20]} 15. Nxf5
{[%clk 0:04:39.6]} 15... Qe5 {[%clk 0:04:18]} 16. Nd4 {[%clk 0:04:33.2]} 16...
a6 {[%clk 0:04:13]} 17. O-O-O {[%clk 0:04:28.6]} 17... Rac8 {[%clk 0:04:11.5]}
18. Kb1 {[%clk 0:04:27.5]} 18... b5 {[%clk 0:04:00.6]} 19. f4 {[%clk 0:04:24.1]}
19... exf3 {[%clk 0:03:41.8]} 20. Nxf3 {[%clk 0:04:21.8]} 20... Qxe3 {[%clk
0:03:39.3]} 21. Rhe1 {[%clk 0:04:21.7]} 21... Qc5 {[%clk 0:03:19.8]} 22. Ne5
{[%clk 0:04:19.4]} 22... Rfe8 {[%clk 0:03:13.3]} 23. Nd7 {[%clk 0:04:17.9]}
23... Nxd7 {[%clk 0:03:07.7]} 24. Rxe8+ {[%clk 0:04:15.6]} 24... Rxe8 {[%clk
0:03:06.3]} 25. Rf1 {[%clk 0:04:11.9]} 25... Qe3 {[%clk 0:02:59.5]} 26. Qf5
{[%clk 0:04:09.7]} 26... Qe4+ {[%clk 0:02:58.1]} 27. Qxe4 {[%clk 0:04:08.4]}
27... dxe4 {[%clk 0:02:56]} 0-1

[Event "Live Chess"]
[Site "Chess.com"]
[Date "2024.06.01"]
[Round "-"]
[White "gmnorfolk"]
[Black "JohanKjeldahl"]
[Result "1-0"]
[WhiteElo "2114"]
[BlackElo "1810"]
[TimeControl "300"]
[EndTime "11:34:00 PDT"]
[Termination "gmnorfolk won by resignation"]

1. c4 {[%clk 0:04:56.8]} 1... Nf6 {[%clk 0:04:57.7]} 2. Nc3 {[%clk 0:04:55.2]}
2... e5 {[%clk 0:04:56.6]} 3. Nf3 {[%clk 0:04:54.1]} 3... Nc6 {[%clk 0:04:55.5]}
4. g3 {[%clk 0:04:53.5]} 4... g6 {[%clk 0:04:49.5]} 5. Bg2 {[%clk 0:04:51.5]}
5... Bg7 {[%clk 0:04:48.3]} 6. O-O {[%clk 0:04:51.1]} 6... O-O {[%clk 0:04:47]}
7. d4 {[%clk 0:04:50.7]} 7... d6 {[%clk 0:04:41.8]} 8. dxe5 {[%clk 0:04:45.7]}
8... Nxe5 {[%clk 0:04:39.6]} 9. Nxe5 {[%clk 0:04:41.1]} 9... dxe5 {[%clk
0:04:38.5]} 10. Qxd8 {[%clk 0:04:40.3]} 10... Rxd8 {[%clk 0:04:35.9]} 11. Bg5
{[%clk 0:04:37.4]} 11... c6 {[%clk 0:04:32.7]} 12. Ne4 {[%clk 0:04:35]} 1-0

[Event "Live Chess"]
[Site "Chess.com"]
[Date "2024.06.01"]
[Round "-"]
[White "McFim"]
[Black "WelshTiger"]
[Result "0-1"]
[WhiteElo "1581"]
[BlackElo "2533"]
[TimeControl "300"]
[EndTime "11:34:04 PDT"]
[Termination "WelshTiger won by resignation"]

1. e4 {[%clk 0:04:56]} 1... e5 {[%clk 0:04:53.9]} 2. Nf3 {[%clk 0:04:54.5]} 2...
Nc6 {[%clk 0:04:53.4]} 3. Bb5 {[%clk 0:04:52]} 3... a6 {[%clk 0:04:52]} 4. Ba4
{[%clk 0:04:50.7]} 4... Nf6 {[%clk 0:04:50.5]} 5. O-O {[%clk 0:04:48.1]} 5...
Nxe4 {[%clk 0:04:49.8]} 6. Re1 {[%clk 0:04:46.7]} 6... Nc5 {[%clk 0:04:48.5]} 7.
Bxc6 {[%clk 0:04:43.5]} 7... dxc6 {[%clk 0:04:46.9]} 8. Nxe5 {[%clk 0:04:40.6]}
8... Ne6 {[%clk 0:04:43.7]} 9. c3 {[%clk 0:04:35]} 9... Be7 {[%clk 0:04:38.5]}
10. d4 {[%clk 0:04:33.6]} 10... O-O {[%clk 0:04:37.4]} 11. h3 {[%clk 0:04:31.2]}
11... f6 {[%clk 0:04:26.8]} 12. Nf3 {[%clk 0:04:27.4]} 12... Bd6 {[%clk
0:04:25.7]} 13. Nbd2 {[%clk 0:04:25.4]} 13... c5 {[%clk 0:04:00.5]} 14. Ne4
{[%clk 0:04:22.4]} 14... cxd4 {[%clk 0:03:59]} 15. Nxd4 {[%clk 0:04:18.8]} 15...
Nxd4 {[%clk 0:03:57.5]} 16. Qxd4 {[%clk 0:04:14.6]} 16... Be5 {[%clk 0:03:51.6]}
17. Qxd8 {[%clk 0:04:11.7]} 17... Rxd8 {[%clk 0:03:50.2]} 18. Be3 {[%clk
0:04:09.1]} 18... Bf5 {[%clk 0:03:46.3]} 19. Nc5 {[%clk 0:03:58.4]} 19... b6
{[%clk 0:03:44]} 20. Nb3 {[%clk 0:03:56.3]} 20... c5 {[%clk 0:03:39.8]} 21. Rad1
{[%clk 0:03:49.8]} 21... a5 {[%clk 0:03:39.2]} 22. Rxd8+ {[%clk 0:03:35.6]}
22... Rxd8 {[%clk 0:03:39.1]} 23. Nd2 {[%clk 0:03:33.2]} 23... Be6 {[%clk
0:03:36.4]} 24. a3 {[%clk 0:03:30.4]} 24... Kf7 {[%clk 0:03:25.4]} 25. Nf3
{[%clk 0:03:21.9]} 25... Bc7 {[%clk 0:03:24.2]} 26. Nd2 {[%clk 0:03:09.4]} 26...
Rd3 {[%clk 0:03:22.5]} 27. Kf1 {[%clk 0:02:49.1]} 27... g5 {[%clk 0:03:18.9]}
28. Ke2 {[%clk 0:02:47.5]} 28... Rd7 {[%clk 0:03:14.2]} 29. f3 {[%clk
0:02:44.8]} 29... h5 {[%clk 0:03:11.3]} 30. Rd1 {[%clk 0:02:41.5]} 30... h4
{[%clk 0:03:06]} 31. c4 {[%clk 0:02:34.2]} 31... a4 {[%clk 0:03:01.4]} 32. Rc1
{[%clk 0:02:24.9]} 32... Be5 {[%clk 0:03:00.2]} 33. Rc2 {[%clk 0:02:20.3]} 33...
Kg6 {[%clk 0:02:54.5]} 34. Ne4 {[%clk 0:02:12.3]} 34... Bc7 {[%clk 0:02:38]} 35.
Nd2 {[%clk 0:02:06.3]} 35... f5 {[%clk 0:02:30.7]} 36. Rc3 {[%clk 0:01:56.3]}
36... Be5 {[%clk 0:02:29]} 37. Rc2 {[%clk 0:01:54.6]} 37... Rd6 {[%clk
0:02:18.2]} 38. Nf1 {[%clk 0:01:48.3]} 38... f4 {[%clk 0:02:12.2]} 39. Bf2
{[%clk 0:01:44.5]} 39... Bf5 {[%clk 0:02:11.5]} 40. Rd2 {[%clk 0:01:41]} 40...
Rxd2+ {[%clk 0:02:07.4]} 41. Kxd2 {[%clk 0:01:38.7]} 41... Bxb2 {[%clk 0:02:07]}
0-1

[Event "Live Chess"]
[Site "Chess.com"]
[Date "2024.06.01"]
[Round "-"]
[White "sugandhasinha"]
[Black "jimwad"]
[Result "0-1"]
[WhiteElo "1115"]
[BlackElo "1246"]
[TimeControl "300"]
[EndTime "11:34:24 PDT"]
[Termination "jimwad won by checkmate"]

1. e4 {[%clk 0:04:29.9]} 1... e5 {[%clk 0:04:58.5]} 2. Nf3 {[%clk 0:04:28.8]}
2... Nc6 {[%clk 0:04:55.1]} 3. Bc4 {[%clk 0:04:26]} 3... Nf6 {[%clk 0:04:49.7]}
4. d3 {[%clk 0:04:24.5]} 4... Bc5 {[%clk 0:04:45.8]} 5. Be3 {[%clk 0:04:23.2]}
5... Bxe3 {[%clk 0:04:44.2]} 6. fxe3 {[%clk 0:04:22.3]} 6... O-O {[%clk
0:04:43.8]} 7. Nbd2 {[%clk 0:04:21.3]} 7... d6 {[%clk 0:04:42.1]} 8. c3 {[%clk
0:04:20.4]} 8... Bg4 {[%clk 0:04:40.2]} 9. O-O {[%clk 0:04:19.1]} 9... a6 {[%clk
0:04:36.3]} 10. h3 {[%clk 0:04:15.6]} 10... Bd7 {[%clk 0:04:34.2]} 11. b3 {[%clk
0:04:12.3]} 11... b5 {[%clk 0:04:33.2]} 12. Bd5 {[%clk 0:04:11.4]} 12... Nxd5
{[%clk 0:04:30.7]} 13. exd5 {[%clk 0:04:10.5]} 13... Ne7 {[%clk 0:04:30.1]} 14.
Ne4 {[%clk 0:04:09.3]} 14... Nxd5 {[%clk 0:04:27.5]} 15. c4 {[%clk 0:04:07.1]}
15... Nxe3 {[%clk 0:04:26]} 16. Qe1 {[%clk 0:04:04.7]} 16... Nxf1 {[%clk
0:04:24.8]} 17. Qxf1 {[%clk 0:04:03.9]} 17... bxc4 {[%clk 0:04:20.4]} 18. bxc4
{[%clk 0:04:02.1]} 18... Bc6 {[%clk 0:04:18.4]} 19. Nfg5 {[%clk 0:03:57]} 19...
h6 {[%clk 0:04:13.7]} 20. Nf3 {[%clk 0:03:51]} 20... Bxe4 {[%clk 0:04:11.9]} 21.
dxe4 {[%clk 0:03:49.7]} 21... f5 {[%clk 0:04:06]} 22. Re1 {[%clk 0:03:44.9]}
22... fxe4 {[%clk 0:03:50.1]} 23. Rxe4 {[%clk 0:03:31.1]} 23... Rf4 {[%clk
0:03:47.6]} 24. Rxf4 {[%clk 0:03:27.4]} 24... exf4 {[%clk 0:03:45.4]} 25. Nd4
{[%clk 0:03:22.6]} 25... Qf6 {[%clk 0:03:41.3]} 26. Qf2 {[%clk 0:03:16.6]} 26...
Rb8 {[%clk 0:03:36.4]} 27. Nc6 {[%clk 0:03:10.3]} 27... Rb1+ {[%clk 0:03:33.9]}
28. Kh2 {[%clk 0:03:08.1]} 28... Rb2 {[%clk 0:03:21.4]} 29. Qa7 {[%clk
0:02:41.9]} 29... Qg5 {[%clk 0:03:03.3]} 30. Qa8+ {[%clk 0:02:37.4]} 30... Kh7
{[%clk 0:03:02.2]} 31. Nd4 {[%clk 0:02:29]} 31... Qxg2+ {[%clk 0:02:59.8]} 32.
Qxg2 {[%clk 0:02:24.6]} 32... Rxg2+ {[%clk 0:02:56.5]} 33. Kxg2 {[%clk
0:02:23.6]} 33... g5 {[%clk 0:02:56]} 34. Ne6 {[%clk 0:02:21.3]} 34... c5 {[%clk
0:02:54]} 35. Nc7 {[%clk 0:02:19.2]} 35... Kg6 {[%clk 0:02:52.9]} 36. Nxa6
{[%clk 0:02:17.9]} 36... Kf5 {[%clk 0:02:52.3]} 37. a4 {[%clk 0:02:16.5]} 37...
Ke4 {[%clk 0:02:49.8]} 38. Nc7 {[%clk 0:02:15.5]} 38... Ke3 {[%clk 0:02:47.1]}
39. a5 {[%clk 0:02:14.9]} 39... Ke2 {[%clk 0:02:46.2]} 40. a6 {[%clk 0:02:13.9]}
40... f3+ {[%clk 0:02:45.5]} 41. Kg1 {[%clk 0:02:09.3]} 41... f2+ {[%clk
0:02:44.6]} 42. Kg2 {[%clk 0:02:07.3]} 42... f1=Q+ {[%clk 0:02:43]} 43. Kg3
{[%clk 0:02:05.3]} 43... Qf4+ {[%clk 0:02:36.9]} 44. Kg2 {[%clk 0:02:02.9]}
44... Qf3+ {[%clk 0:02:32.2]} 45. Kg1 {[%clk 0:01:59.7]} 45... Qf2+ {[%clk
0:02:28.2]} 46. Kh1 {[%clk 0:01:51.9]} 46... Kf3 {[%clk 0:02:27.6]} 47. a7
{[%clk 0:01:46.7]} 47... Qg2# {[%clk 0:02:26.4]} 0-1